[Event "*** Titled Tuesday Blitz"]
[Site "Chess.com"]
[Date "2019.05.07"]
[Round "1"]
[White "krzyzan94"]
[Black "OneTrickPony_82"]
[Result "1-0"]
[WhiteElo "2650"]
[BlackElo "2329"]
[TimeControl "180+2"]
[EndTime "13:14:24 PDT"]
[Termination "krzyzan94 won by resignation"]

1. d4 {[%clk 0:02:59.6]} 1... Nf6 {[%clk 0:03:00.5]} 2. Nc3 {[%clk 0:03:00.8]}
2... d5 {[%clk 0:03:00]} 3. Bf4 {[%clk 0:03:02.3]} 3... c5 {[%clk 0:02:58.9]} 4.
e3 {[%clk 0:03:00.8]} 4... cxd4 {[%clk 0:02:55.8]} 5. e4 {[%clk 0:03:01.5]} 5...
dxc3 {[%clk 0:02:55.2]} 6. e5 {[%clk 0:02:56.2]} 6... cxb2 {[%clk 0:02:47.6]} 7.
Rb1 {[%clk 0:02:56.5]} 7... Ne4 {[%clk 0:02:45]} 8. Ne2 {[%clk 0:02:16.7]} 8...
Qa5+ {[%clk 0:02:35.7]} 9. c3 {[%clk 0:02:17.9]} 9... e6 {[%clk 0:02:12.5]} 10.
Qc2 {[%clk 0:01:44.4]} 10... Ba3 {[%clk 0:01:57.8]} 11. f3 {[%clk 0:01:44.7]}
11... Nc5 {[%clk 0:01:54.7]} 12. Nd4 {[%clk 0:01:45.3]} 12... Nc6 {[%clk
0:01:41.4]} 13. Nb5 {[%clk 0:01:46]} 13... O-O {[%clk 0:01:38.4]} 14. Be2 {[%clk
0:01:46.7]} 14... a6 {[%clk 0:01:36.1]} 15. Nxa3 {[%clk 0:01:35.3]} 15... Qxa3
{[%clk 0:01:37.1]} 16. Rxb2 {[%clk 0:01:37.2]} 16... Qa4 {[%clk 0:01:21.1]} 17.
Qc1 {[%clk 0:01:32]} 17... b5 {[%clk 0:01:14.1]} 18. O-O {[%clk 0:01:31.9]}
18... Bd7 {[%clk 0:01:11.7]} 19. h4 {[%clk 0:01:21.2]} 19... Rac8 {[%clk
0:01:00.6]} 20. h5 {[%clk 0:01:19.3]} 20... d4 {[%clk 0:01:00.2]} 21. cxd4
{[%clk 0:00:55.4]} 21... Nxd4 {[%clk 0:00:58]} 22. Qe3 {[%clk 0:00:54.7]} 22...
Nf5 {[%clk 0:00:44.8]} 23. Qd2 {[%clk 0:00:53.4]} 23... Qd4+ {[%clk 0:00:40.2]}
24. Kh2 {[%clk 0:00:54.7]} 24... Rfd8 {[%clk 0:00:35.6]} 25. g4 {[%clk
0:00:54.9]} 25... Qxd2 {[%clk 0:00:32.5]} 26. Rxd2 {[%clk 0:00:56.8]} 26... Ne7
{[%clk 0:00:33.3]} 27. Bg5 {[%clk 0:00:57.4]} 27... Kf8 {[%clk 0:00:30.1]} 28.
Rfd1 {[%clk 0:00:58.9]} 28... Ke8 {[%clk 0:00:24.2]} 29. h6 {[%clk 0:00:58.3]}
29... gxh6 {[%clk 0:00:22.9]} 30. Bf6 {[%clk 0:00:55.1]} 30... Bc6 {[%clk
0:00:19.9]} 31. Kg3 {[%clk 0:00:56.4]} 31... Rxd2 {[%clk 0:00:20.1]} 32. Rxd2
{[%clk 0:00:58.3]} 32... Nd5 {[%clk 0:00:21.4]} 33. Bh4 {[%clk 0:00:59.1]} 33...
Bb7 {[%clk 0:00:21.4]} 34. Bd1 {[%clk 0:00:57.5]} 34... Na4 {[%clk 0:00:21.9]}
35. Bb3 {[%clk 0:00:57.4]} 35... Nac3 {[%clk 0:00:22.6]} 36. Rh2 {[%clk
0:00:55.2]} 36... a5 {[%clk 0:00:20.9]} 37. g5 {[%clk 0:00:50.8]} 37... hxg5
{[%clk 0:00:21.4]} 38. Bxg5 {[%clk 0:00:52.7]} 38... a4 {[%clk 0:00:22.7]} 39.
Bc2 {[%clk 0:00:53.4]} 39... b4 {[%clk 0:00:21.4]} 40. Bxh7 {[%clk 0:00:53.9]}
40... Kd7 {[%clk 0:00:21.8]} 41. Bd3 {[%clk 0:00:53.7]} 41... b3 {[%clk
0:00:22.4]} 42. axb3 {[%clk 0:00:55.6]} 42... axb3 {[%clk 0:00:23.7]} 43. Rb2
{[%clk 0:00:56.8]} 43... Bc6 {[%clk 0:00:20.2]} 44. Rxb3 {[%clk 0:00:57.8]}
44... Rc7 {[%clk 0:00:21.3]} 45. Rb8 {[%clk 0:00:58.3]} 45... Rb7 {[%clk
0:00:21.5]} 46. Rd8+ {[%clk 0:00:58.1]} 46... Kc7 {[%clk 0:00:22.3]} 47. Rd6
{[%clk 0:01:00]} 47... Nb5 {[%clk 0:00:20]} 48. Bxb5 {[%clk 0:00:54.3]} 48...
Rxb5 {[%clk 0:00:21.1]} 49. Bd8+ {[%clk 0:00:54.8]} 49... Kb7 {[%clk 0:00:20.6]}
50. Bg5 {[%clk 0:00:52.6]} 50... Rb3 {[%clk 0:00:21.5]} 51. Rd8 {[%clk
0:00:51.7]} 51... Nc7 {[%clk 0:00:22.6]} 52. Be7 {[%clk 0:00:49.1]} 52... Rxf3+
{[%clk 0:00:23.3]} 53. Kg4 {[%clk 0:00:50.4]} 53... Rf5 {[%clk 0:00:22.3]} 54.
Bd6 {[%clk 0:00:51.7]} 54... f6 {[%clk 0:00:20.1]} 55. Rh8 {[%clk 0:00:47.7]}
55... Rg5+ {[%clk 0:00:19.1]} 56. Kh4 {[%clk 0:00:47.4]} 56... Rg7 {[%clk
0:00:14.5]} 57. exf6 {[%clk 0:00:48]} 57... Rf7 {[%clk 0:00:15.7]} 58. Kg5
{[%clk 0:00:47.2]} 58... Nd5 {[%clk 0:00:16.4]} 59. Be5 {[%clk 0:00:48.7]} 59...
Bb5 {[%clk 0:00:14.3]} 60. Rb8+ {[%clk 0:00:49.3]} 60... Kc6 {[%clk 0:00:15]}
61. Kg6 {[%clk 0:00:49.5]} 61... Ra7 {[%clk 0:00:11.1]} 62. f7 {[%clk
0:00:50.6]} 62... Rxf7 {[%clk 0:00:12.1]} 63. Kxf7 {[%clk 0:00:52.5]} 63... Bc4
{[%clk 0:00:12.6]} 64. Kg6 {[%clk 0:00:47.9]} 64... Ne3 {[%clk 0:00:12.7]} 65.
Kf7 {[%clk 0:00:45.2]} 65... Nf5 {[%clk 0:00:12.8]} 66. Kf6 {[%clk 0:00:44.2]}
66... Kd5 {[%clk 0:00:12.6]} 67. Rd8+ {[%clk 0:00:43]} 67... Ke4 {[%clk
0:00:13.1]} 68. Bc3 {[%clk 0:00:42.4]} 68... Bd5 {[%clk 0:00:14.1]} 69. Rb8
{[%clk 0:00:41.8]} 69... Ne3 {[%clk 0:00:14]} 70. Rb4+ {[%clk 0:00:38.7]} 70...
Nc4 {[%clk 0:00:14.6]} 71. Ba1 {[%clk 0:00:35.8]} 71... Kd3 {[%clk 0:00:14.5]}
72. Rb3+ {[%clk 0:00:36.4]} 72... Ke4 {[%clk 0:00:15.4]} 73. Rh3 {[%clk
0:00:36.8]} 73... Kf4 {[%clk 0:00:16.2]} 74. Rh4+ {[%clk 0:00:36.7]} 74... Ke3
{[%clk 0:00:17.2]} 75. Bd4+ {[%clk 0:00:36.8]} 75... Kd3 {[%clk 0:00:18.3]} 76.
Bc5 {[%clk 0:00:38.3]} 76... Kc3 {[%clk 0:00:18.6]} 77. Ke7 {[%clk 0:00:37.8]}
77... Kd3 {[%clk 0:00:19.8]} 78. Kf6 {[%clk 0:00:38.3]} 78... Kc3 {[%clk
0:00:21]} 79. Rh3+ {[%clk 0:00:39.9]} 79... Kd2 {[%clk 0:00:21.5]} 80. Bd4
{[%clk 0:00:40.7]} 80... Ke2 {[%clk 0:00:22.4]} 81. Kg5 {[%clk 0:00:41.3]} 81...
Kd2 {[%clk 0:00:23.5]} 82. Kf4 {[%clk 0:00:42.6]} 82... Ke2 {[%clk 0:00:22.5]}
83. Bc3 {[%clk 0:00:38]} 83... Kd1 {[%clk 0:00:18.8]} 84. Rh2 {[%clk 0:00:37.8]}
84... Kc1 {[%clk 0:00:19.7]} 85. Bf6 {[%clk 0:00:31.5]} 85... Kd1 {[%clk
0:00:20]} 86. Kg5 {[%clk 0:00:29.5]} 86... Kc1 {[%clk 0:00:21]} 87. Kg6 {[%clk
0:00:30.8]} 87... Kd1 {[%clk 0:00:20.1]} 88. Kf7 {[%clk 0:00:29.1]} 88... e5+
{[%clk 0:00:17.4]} 89. Kg6 {[%clk 0:00:30.3]} 89... e4 {[%clk 0:00:18.8]} 90.
Rh5 {[%clk 0:00:29.2]} 90... Be6 {[%clk 0:00:12.1]} 91. Bd4 {[%clk 0:00:21.3]}
91... e3 {[%clk 0:00:10.9]} 92. Bxe3 {[%clk 0:00:21.4]} 92... Nxe3 {[%clk
0:00:12]} 93. Re5 {[%clk 0:00:23]} 93... Bf5+ {[%clk 0:00:13.3]} 94. Kg5 {[%clk
0:00:23.9]} 94... Kd2 {[%clk 0:00:13.8]} 95. Kf4 {[%clk 0:00:25.3]} 95... Bd3
{[%clk 0:00:11.2]} 96. Rxe3 {[%clk 0:00:26.2]} 96... Kc3 {[%clk 0:00:12.5]} 97.
Ke5 {[%clk 0:00:27]} 97... Kc4 {[%clk 0:00:13.9]} 98. Rg3 {[%clk 0:00:27.7]}
98... Kc3 {[%clk 0:00:14.4]} 99. Kd5 {[%clk 0:00:28.8]} 99... Kd2 {[%clk
0:00:12.7]} 100. Kd4 {[%clk 0:00:30.7]} 100... Bc2 {[%clk 0:00:12.9]} 101. Rg2+
{[%clk 0:00:32]} 101... Kd1 {[%clk 0:00:06.2]} 102. Ke3 {[%clk 0:00:24.5]}
102... Kc1 {[%clk 0:00:05.8]} 103. Rf2 {[%clk 0:00:21.5]} 103... Kb2 {[%clk
0:00:05.9]} 104. Kd4 {[%clk 0:00:22.5]} 104... Kb3 {[%clk 0:00:06.8]} 105. Rf1
{[%clk 0:00:21.5]} 105... Bg6 {[%clk 0:00:07]} 106. Rf3+ {[%clk 0:00:21.1]}
106... Kb4 {[%clk 0:00:07.5]} 107. Rf6 {[%clk 0:00:23]} 107... Bh5 {[%clk
0:00:04.9]} 108. Rb6+ {[%clk 0:00:24.3]} 108... Ka3 {[%clk 0:00:06.2]} 109. Kc3
{[%clk 0:00:25.1]} 109... Ka4 {[%clk 0:00:07.4]} 110. Rh6 {[%clk 0:00:24.4]}
110... Bf3 {[%clk 0:00:06.8]} 111. Rh3 {[%clk 0:00:24.9]} 111... Bg2 {[%clk
0:00:06.5]} 112. Rg3 {[%clk 0:00:25.7]} 112... Bc6 {[%clk 0:00:05.6]} 113. Kc4
{[%clk 0:00:26.8]} 113... Ka5 {[%clk 0:00:04.6]} 114. Kc5 {[%clk 0:00:26.5]}
114... Bb5 {[%clk 0:00:02]} 115. Ra3+ {[%clk 0:00:27.4]} 115... Ba4 {[%clk
0:00:03.3]} 116. Ra1 {[%clk 0:00:29.3]} 1-0

[Event "*** Titled Tuesday Blitz"]
[Site "Chess.com"]
[Date "2019.05.07"]
[Round "2"]
[White "DrBergerBerger"]
[Black "Haykos"]
[Result "1-0"]
[WhiteElo "2413"]
[BlackElo "2567"]
[TimeControl "180+2"]
[EndTime "13:16:50 PDT"]
[Termination "DrBergerBerger won by checkmate"]

1. e4 {[%clk 0:03:01.9]} 1... c5 {[%clk 0:02:59]} 2. Nc3 {[%clk 0:03:01.2]} 2...
Nc6 {[%clk 0:02:58.3]} 3. Bb5 {[%clk 0:02:59.6]} 3... Nd4 {[%clk 0:02:50.5]} 4.
Nf3 {[%clk 0:02:59.8]} 4... Nxb5 {[%clk 0:02:50.3]} 5. Nxb5 {[%clk 0:03:01.7]}
5... a6 {[%clk 0:02:51.4]} 6. Nc3 {[%clk 0:03:01.2]} 6... b5 {[%clk 0:02:52.4]}
7. d4 {[%clk 0:02:59.4]} 7... cxd4 {[%clk 0:02:52.1]} 8. Qxd4 {[%clk 0:03:01.3]}
8... Bb7 {[%clk 0:02:49.8]} 9. Bg5 {[%clk 0:02:59.9]} 9... Rc8 {[%clk
0:02:49.4]} 10. O-O-O {[%clk 0:02:57.3]} 10... Qa5 {[%clk 0:02:47.3]} 11. Qxd7#
{[%clk 0:02:56.7]} 1-0

[Event "*** Titled Tuesday Blitz"]
[Site "Chess.com"]
[Date "2019.05.07"]
[Round "2"]
[White "Yaacovn"]
[Black "santosalberto1987"]
[Result "1-0"]
[WhiteElo "2798"]
[BlackElo "2352"]
[TimeControl "180+2"]
[EndTime "13:18:12 PDT"]
[Termination "Yaacovn won by resignation"]

1. d4 {[%clk 0:02:58.8]} 1... d5 {[%clk 0:03:00.2]} 2. Nf3 {[%clk 0:02:58.1]}
2... c6 {[%clk 0:03:00.9]} 3. c4 {[%clk 0:02:59.2]} 3... Nf6 {[%clk 0:03:01.7]}
4. cxd5 {[%clk 0:03:00.6]} 4... cxd5 {[%clk 0:03:02.5]} 5. Nc3 {[%clk
0:03:02.5]} 5... Nc6 {[%clk 0:03:03.9]} 6. Bf4 {[%clk 0:03:03.7]} 6... a6 {[%clk
0:03:05]} 7. Ne5 {[%clk 0:03:05]} 7... Qb6 {[%clk 0:03:00]} 8. Nxc6 {[%clk
0:03:05.1]} 8... Qxc6 {[%clk 0:02:59.6]} 9. Qd2 {[%clk 0:03:06]} 9... Bf5 {[%clk
0:02:59.6]} 10. e3 {[%clk 0:03:07.2]} 10... e6 {[%clk 0:03:00.5]} 11. Rc1 {[%clk
0:03:08.6]} 11... Qb6 {[%clk 0:03:01.2]} 12. Be2 {[%clk 0:03:07.9]} 12... Be7
{[%clk 0:03:01.8]} 13. O-O {[%clk 0:03:09]} 13... O-O {[%clk 0:03:01.3]} 14. Na4
{[%clk 0:03:10.4]} 14... Qd8 {[%clk 0:02:37.5]} 15. Bc7 {[%clk 0:03:10.6]} 15...
Qe8 {[%clk 0:02:34.6]} 16. Nb6 {[%clk 0:03:11.9]} 16... Ne4 {[%clk 0:02:31.6]}
17. Qa5 {[%clk 0:03:11.9]} 17... Rd8 {[%clk 0:02:27.3]} 18. Bxd8 {[%clk
0:03:12.5]} 18... Qxd8 {[%clk 0:02:28.4]} 19. Rc8 {[%clk 0:03:11.9]} 19... Qd6
{[%clk 0:02:26.5]} 20. Rxf8+ {[%clk 0:03:13]} 20... Bxf8 {[%clk 0:02:27.6]} 21.
Rc1 {[%clk 0:03:14.4]} 21... Nxf2 {[%clk 0:02:23.7]} 22. Kxf2 {[%clk 0:03:15]}
22... Qxh2 {[%clk 0:02:24.6]} 23. Bf3 {[%clk 0:03:09.3]} 23... g5 {[%clk
0:02:25.2]} 24. Nd7 {[%clk 0:03:08.7]} 24... g4 {[%clk 0:02:23.9]} 25. Qd8
{[%clk 0:03:08.8]} 25... Qh4+ {[%clk 0:02:22.9]} 26. Qxh4 {[%clk 0:03:09.3]} 1-0

[Event "*** Titled Tuesday Blitz"]
[Site "Chess.com"]
[Date "2019.05.07"]
[Round "2"]
[White "Saitama_Hero"]
[Black "saraswathii"]
[Result "0-1"]
[WhiteElo "2208"]
[BlackElo "2256"]
[TimeControl "180+2"]
[EndTime "13:19:01 PDT"]
[Termination "saraswathii won by resignation"]

1. d4 {[%clk 0:03:01.9]} 1... Nf6 {[%clk 0:02:59.5]} 2. Bg5 {[%clk 0:03:03.4]}
2... g6 {[%clk 0:02:53.8]} 3. Bxf6 {[%clk 0:03:03.7]} 3... exf6 {[%clk
0:02:38.8]} 4. e3 {[%clk 0:03:05.6]} 4... Bg7 {[%clk 0:02:37.4]} 5. Bc4 {[%clk
0:03:06.8]} 5... O-O {[%clk 0:02:35.8]} 6. Ne2 {[%clk 0:03:08.3]} 6... d5 {[%clk
0:02:35.2]} 7. Bb3 {[%clk 0:03:07.9]} 7... f5 {[%clk 0:02:34.8]} 8. c4 {[%clk
0:03:04.8]} 8... dxc4 {[%clk 0:02:34.1]} 9. Bxc4 {[%clk 0:03:06.7]} 9... c5
{[%clk 0:02:30.6]} 10. O-O {[%clk 0:03:00.5]} 10... Nc6 {[%clk 0:02:24.9]} 11.
Nbc3 {[%clk 0:02:52.7]} 11... cxd4 {[%clk 0:02:23.6]} 12. Nb5 {[%clk 0:02:47.6]}
12... dxe3 {[%clk 0:02:21.8]} 13. Qb3 {[%clk 0:02:44.5]} 13... exf2+ {[%clk
0:02:19.5]} 14. Kh1 {[%clk 0:02:46]} 14... a6 {[%clk 0:02:20]} 15. Rad1 {[%clk
0:02:46.2]} 15... Qb6 {[%clk 0:02:20.3]} 16. Nd6 {[%clk 0:02:35.4]} 16... Qxb3
{[%clk 0:02:20.6]} 17. Bxb3 {[%clk 0:02:37.3]} 17... Bxb2 {[%clk 0:02:15.1]} 18.
Rxf2 {[%clk 0:02:35.2]} 18... Be5 {[%clk 0:02:11.8]} 19. Nxc8 {[%clk 0:02:31.9]}
19... Raxc8 {[%clk 0:02:11.8]} 20. Rd7 {[%clk 0:02:32.3]} 20... Rc7 {[%clk
0:02:09.2]} 21. Rxc7 {[%clk 0:02:31.2]} 21... Bxc7 {[%clk 0:02:11.1]} 0-1

[Event "*** Titled Tuesday Blitz"]
[Site "Chess.com"]
[Date "2019.05.07"]
[Round "2"]
[White "dsanchez1973"]
[Black "picturesquecheck"]
[Result "1-0"]
[WhiteElo "2052"]
[BlackElo "2067"]
[TimeControl "180+2"]
[EndTime "13:19:12 PDT"]
[Termination "dsanchez1973 won by resignation"]

1. e4 {[%clk 0:03:01.9]} 1... c5 {[%clk 0:02:59.5]} 2. Nf3 {[%clk 0:03:03]} 2...
e6 {[%clk 0:02:59]} 3. d4 {[%clk 0:03:04.9]} 3... cxd4 {[%clk 0:02:55]} 4. Nxd4
{[%clk 0:03:06.8]} 4... Nf6 {[%clk 0:02:55.4]} 5. Nc3 {[%clk 0:03:07.5]} 5... d6
{[%clk 0:02:55.1]} 6. g4 {[%clk 0:03:06.3]} 6... h6 {[%clk 0:02:55.9]} 7. Rg1
{[%clk 0:03:06.7]} 7... Nc6 {[%clk 0:02:55.6]} 8. Be3 {[%clk 0:03:07.2]} 8...
Be7 {[%clk 0:02:54.2]} 9. Qe2 {[%clk 0:03:08.4]} 9... d5 {[%clk 0:02:50.4]} 10.
Nxc6 {[%clk 0:03:04.3]} 10... bxc6 {[%clk 0:02:50.8]} 11. O-O-O {[%clk 0:03:03]}
11... Qa5 {[%clk 0:02:47.5]} 12. e5 {[%clk 0:03:02]} 12... Nd7 {[%clk
0:02:45.8]} 13. Kb1 {[%clk 0:02:58.6]} 13... Bb4 {[%clk 0:02:45.4]} 14. Bd2
{[%clk 0:02:53.7]} 14... Rb8 {[%clk 0:02:39.8]} 15. Qe3 {[%clk 0:02:37.7]} 15...
Bc5 {[%clk 0:02:18.2]} 16. Qg3 {[%clk 0:02:35]} 16... Qb6 {[%clk 0:02:07.8]} 17.
Na4 {[%clk 0:02:29.5]} 17... Bxf2 {[%clk 0:01:50.5]} 18. Nxb6 {[%clk 0:02:27.5]}
18... Bxg3 {[%clk 0:01:51.1]} 19. Nxd7 {[%clk 0:02:25.6]} 19... Bxd7 {[%clk
0:01:51.6]} 20. Rxg3 {[%clk 0:02:25.3]} 1-0

[Event "*** Titled Tuesday Blitz"]
[Site "Chess.com"]
[Date "2019.05.07"]
[Round "2"]
[White "Warre"]
[Black "NateSolon"]
[Result "0-1"]
[WhiteElo "2403"]
[BlackElo "2531"]
[TimeControl "180+2"]
[EndTime "13:19:30 PDT"]
[Termination "NateSolon won by resignation"]

1. d4 {[%clk 0:03:01.9]} 1... d5 {[%clk 0:03:00.7]} 2. c4 {[%clk 0:03:00.5]}
2... dxc4 {[%clk 0:03:02.6]} 3. Nf3 {[%clk 0:02:58.9]} 3... a6 {[%clk
0:03:03.3]} 4. e3 {[%clk 0:02:59.4]} 4... Bg4 {[%clk 0:03:02.7]} 5. h3 {[%clk
0:02:57.8]} 5... Bh5 {[%clk 0:03:02]} 6. Bxc4 {[%clk 0:02:59]} 6... e6 {[%clk
0:03:03.4]} 7. g4 {[%clk 0:02:55.6]} 7... Bg6 {[%clk 0:03:04.4]} 8. Ne5 {[%clk
0:02:57]} 8... Nd7 {[%clk 0:03:05.2]} 9. Nxg6 {[%clk 0:02:57.2]} 9... hxg6
{[%clk 0:03:07.1]} 10. Qf3 {[%clk 0:02:55.5]} 10... c6 {[%clk 0:03:06]} 11. Nc3
{[%clk 0:02:56.3]} 11... Ngf6 {[%clk 0:03:06.2]} 12. Kf1 {[%clk 0:02:57.5]}
12... Bd6 {[%clk 0:02:49.7]} 13. Kg2 {[%clk 0:02:57.3]} 13... Qe7 {[%clk
0:02:50]} 14. Bd2 {[%clk 0:02:48.7]} 14... e5 {[%clk 0:02:49.7]} 15. a3 {[%clk
0:02:36.8]} 15... e4 {[%clk 0:02:45.8]} 16. Qe2 {[%clk 0:02:36]} 16... g5 {[%clk
0:02:39.6]} 17. f3 {[%clk 0:02:14]} 17... O-O {[%clk 0:01:57.2]} 18. fxe4 {[%clk
0:02:00.7]} 18... Nxe4 {[%clk 0:01:58.2]} 19. Nxe4 {[%clk 0:01:57.9]} 19...
Qxe4+ {[%clk 0:02:00.1]} 20. Qf3 {[%clk 0:01:59.5]} 20... Qc2 {[%clk 0:01:59]}
21. Qf2 {[%clk 0:01:54]} 21... Qxc4 {[%clk 0:01:58.7]} 22. h4 {[%clk 0:01:54]}
22... Qd5+ {[%clk 0:01:57.2]} 0-1

[Event "*** Titled Tuesday Blitz"]
[Site "Chess.com"]
[Date "2019.05.07"]
[Round "2"]
[White "SantoBlue"]
[Black "Ali_rastbod"]
[Result "1-0"]
[WhiteElo "2793"]
[BlackElo "2617"]
[TimeControl "180+2"]
[EndTime "13:20:07 PDT"]
[Termination "SantoBlue won by resignation"]

1. e4 {[%clk 0:03:01.4]} 1... e6 {[%clk 0:03:00.1]} 2. d4 {[%clk 0:02:58.5]}
2... d5 {[%clk 0:03:00.9]} 3. Nd2 {[%clk 0:02:56]} 3... Be7 {[%clk 0:02:59.7]}
4. Ngf3 {[%clk 0:02:54.5]} 4... Nf6 {[%clk 0:02:59.7]} 5. e5 {[%clk 0:02:55.9]}
5... Nfd7 {[%clk 0:02:59.6]} 6. Bd3 {[%clk 0:02:57.4]} 6... c5 {[%clk
0:03:00.2]} 7. c3 {[%clk 0:02:54.3]} 7... Nc6 {[%clk 0:03:01.2]} 8. O-O {[%clk
0:02:55.3]} 8... O-O {[%clk 0:03:02.4]} 9. Re1 {[%clk 0:02:55.1]} 9... f6 {[%clk
0:03:01.7]} 10. exf6 {[%clk 0:02:55.6]} 10... Nxf6 {[%clk 0:03:03.6]} 11. Nf1
{[%clk 0:02:51.6]} 11... cxd4 {[%clk 0:03:04.5]} 12. cxd4 {[%clk 0:02:51.7]}
12... Qb6 {[%clk 0:03:06.4]} 13. Ng3 {[%clk 0:02:52]} 13... Bd6 {[%clk
0:02:42.2]} 14. a3 {[%clk 0:02:43.7]} 14... Ng4 {[%clk 0:02:25]} 15. Bxh7+
{[%clk 0:02:40.2]} 15... Kxh7 {[%clk 0:02:21]} 16. Ng5+ {[%clk 0:02:41.3]} 16...
Kg8 {[%clk 0:02:22.1]} 17. Qxg4 {[%clk 0:02:42.4]} 17... Qxd4 {[%clk 0:02:23.3]}
18. Qe2 {[%clk 0:02:37.5]} 18... e5 {[%clk 0:02:04.7]} 19. Be3 {[%clk
0:02:35.8]} 19... Qh4 {[%clk 0:02:02.3]} 20. Nf3 {[%clk 0:02:33.4]} 20... Qf6
{[%clk 0:02:00.7]} 21. Rad1 {[%clk 0:02:33.4]} 21... Be6 {[%clk 0:01:37.9]} 22.
Ng5 {[%clk 0:02:31.5]} 22... e4 {[%clk 0:01:21.2]} 23. Qh5 {[%clk 0:02:27.6]}
1-0

[Event "*** Titled Tuesday Blitz"]
[Site "Chess.com"]
[Date "2019.05.07"]
[Round "2"]
[White "filali-marouan"]
[Black "RegZryt"]
[Result "0-1"]
[WhiteElo "2375"]
[BlackElo "2516"]
[TimeControl "180+2"]
[EndTime "13:20:29 PDT"]
[Termination "RegZryt won on time"]

1. e4 {[%clk 0:03:01.9]} 1... c5 {[%clk 0:03:00.4]} 2. Nf3 {[%clk 0:02:59.5]}
2... e6 {[%clk 0:03:01.7]} 3. d4 {[%clk 0:03:01]} 3... cxd4 {[%clk 0:03:03.6]}
4. Nxd4 {[%clk 0:03:02.9]} 4... Nf6 {[%clk 0:03:04.9]} 5. Nc3 {[%clk 0:03:03.5]}
5... Nc6 {[%clk 0:03:06.4]} 6. Be2 {[%clk 0:02:59.3]} 6... Bb4 {[%clk
0:03:06.5]} 7. Nxc6 {[%clk 0:02:55.4]} 7... bxc6 {[%clk 0:03:06.6]} 8. f3 {[%clk
0:02:56.5]} 8... d5 {[%clk 0:03:06.7]} 9. exd5 {[%clk 0:02:52.4]} 9... cxd5
{[%clk 0:03:07.9]} 10. O-O {[%clk 0:02:49.8]} 10... O-O {[%clk 0:03:08.2]} 11.
Kh1 {[%clk 0:02:49.4]} 11... Qc7 {[%clk 0:03:06.9]} 12. Nb5 {[%clk 0:02:48.1]}
12... Qb6 {[%clk 0:03:05.6]} 13. c3 {[%clk 0:02:47.5]} 13... Bc5 {[%clk
0:03:04.1]} 14. Bf4 {[%clk 0:02:48.2]} 14... Bd7 {[%clk 0:02:57.4]} 15. Bc7
{[%clk 0:02:13.3]} 15... Qb7 {[%clk 0:02:46.4]} 16. Bd6 {[%clk 0:02:11.2]} 16...
Bxd6 {[%clk 0:02:45.9]} 17. Nxd6 {[%clk 0:01:55.3]} 17... Qb6 {[%clk 0:02:46.9]}
18. Nxf7 {[%clk 0:01:46.6]} 18... Rxf7 {[%clk 0:02:47.2]} 0-1

[Event "*** Titled Tuesday Blitz"]
[Site "Chess.com"]
[Date "2019.05.07"]
[Round "2"]
[White "JozefKneht"]
[Black "Rodalquilar"]
[Result "0-1"]
[WhiteElo "2309"]
[BlackElo "2529"]
[TimeControl "180+2"]
[EndTime "13:20:37 PDT"]
[Termination "Rodalquilar won by resignation"]

1. d4 {[%clk 0:03:01.9]} 1... d5 {[%clk 0:02:57.1]} 2. Bf4 {[%clk 0:03:02.5]}
2... Nf6 {[%clk 0:02:56]} 3. e3 {[%clk 0:03:03.5]} 3... c5 {[%clk 0:02:49.2]} 4.
c3 {[%clk 0:03:04.5]} 4... Nc6 {[%clk 0:02:49.5]} 5. Nd2 {[%clk 0:03:05.4]} 5...
Bf5 {[%clk 0:02:49.1]} 6. Ngf3 {[%clk 0:02:57.2]} 6... e6 {[%clk 0:02:46.9]} 7.
Bb5 {[%clk 0:02:48.7]} 7... Qb6 {[%clk 0:02:33.8]} 8. a4 {[%clk 0:02:11.4]} 8...
Be7 {[%clk 0:02:33.3]} 9. O-O {[%clk 0:02:07.2]} 9... O-O {[%clk 0:02:34.1]} 10.
Qc1 {[%clk 0:01:27.2]} 10... h6 {[%clk 0:02:34]} 11. h3 {[%clk 0:01:27.7]} 11...
Nd7 {[%clk 0:02:28.1]} 12. Re1 {[%clk 0:01:24.8]} 12... a6 {[%clk 0:02:28.6]}
13. Bxc6 {[%clk 0:01:25.3]} 13... Qxc6 {[%clk 0:02:30.5]} 14. Ne5 {[%clk
0:01:20.9]} 14... Nxe5 {[%clk 0:02:31]} 15. Bxe5 {[%clk 0:01:22.2]} 15... b5
{[%clk 0:02:32.3]} 16. axb5 {[%clk 0:01:21.2]} 16... axb5 {[%clk 0:02:34.2]} 17.
dxc5 {[%clk 0:00:51]} 17... Bxc5 {[%clk 0:02:32.4]} 18. Bd4 {[%clk 0:00:52.2]}
18... Bd6 {[%clk 0:02:32.4]} 19. Nb3 {[%clk 0:00:50]} 19... e5 {[%clk
0:02:31.1]} 20. Ba7 {[%clk 0:00:47.1]} 20... Qc7 {[%clk 0:02:27]} 21. g4 {[%clk
0:00:34.6]} 21... Bg6 {[%clk 0:02:23.1]} 22. Ra6 {[%clk 0:00:35.9]} 22... Rxa7
{[%clk 0:02:22.4]} 0-1

[Event "*** Titled Tuesday Blitz"]
[Site "Chess.com"]
[Date "2019.05.07"]
[Round "2"]
[White "TheGandhiOfChess"]
[Black "oskariot"]
[Result "0-1"]
[WhiteElo "2279"]
[BlackElo "2560"]
[TimeControl "180+2"]
[EndTime "13:20:39 PDT"]
[Termination "oskariot won by resignation"]

1. e4 {[%clk 0:02:58.6]} 1... g6 {[%clk 0:02:57.9]} 2. Nf3 {[%clk 0:02:59.1]}
2... Bg7 {[%clk 0:02:58.2]} 3. d4 {[%clk 0:02:59]} 3... d6 {[%clk 0:02:57.3]} 4.
Bc4 {[%clk 0:02:57.4]} 4... e6 {[%clk 0:02:57.8]} 5. Bb3 {[%clk 0:02:57.5]} 5...
Ne7 {[%clk 0:02:59.1]} 6. Qe2 {[%clk 0:02:55.6]} 6... b6 {[%clk 0:03:00.2]} 7.
Nbd2 {[%clk 0:02:56.2]} 7... Bb7 {[%clk 0:03:01.7]} 8. Nf1 {[%clk 0:02:57.8]}
8... Nd7 {[%clk 0:03:03.1]} 9. Ng3 {[%clk 0:02:57.6]} 9... Nf6 {[%clk
0:03:00.6]} 10. c3 {[%clk 0:02:57.1]} 10... a5 {[%clk 0:03:00.1]} 11. Ba4+
{[%clk 0:02:51.7]} 11... c6 {[%clk 0:03:00.6]} 12. h4 {[%clk 0:02:52.1]} 12...
b5 {[%clk 0:03:00.8]} 13. Bc2 {[%clk 0:02:53.2]} 13... a4 {[%clk 0:03:02.3]} 14.
h5 {[%clk 0:02:53.7]} 14... Rg8 {[%clk 0:03:03.3]} 15. hxg6 {[%clk 0:02:48.1]}
15... hxg6 {[%clk 0:03:05.2]} 16. Bg5 {[%clk 0:02:48.9]} 16... Qc7 {[%clk
0:03:01.5]} 17. a3 {[%clk 0:02:48.7]} 17... e5 {[%clk 0:02:40]} 18. O-O-O {[%clk
0:02:29.2]} 18... O-O-O {[%clk 0:02:38.2]} 19. c4 {[%clk 0:02:28.3]} 19... Ba6
{[%clk 0:02:31.9]} 20. c5 {[%clk 0:02:19.1]} 20... dxc5 {[%clk 0:02:29.6]} 21.
dxe5 {[%clk 0:02:16]} 21... Ng4 {[%clk 0:02:28.6]} 22. Rxd8+ {[%clk 0:02:07.8]}
22... Rxd8 {[%clk 0:02:29.1]} 23. Rh7 {[%clk 0:02:07.4]} 23... Rg8 {[%clk
0:02:21.5]} 24. Qd2 {[%clk 0:01:49.5]} 24... Nxe5 {[%clk 0:02:15.7]} 25. Nxe5
{[%clk 0:01:50.2]} 25... Qxe5 {[%clk 0:02:16.5]} 26. f4 {[%clk 0:01:51.4]} 26...
Qxb2+ {[%clk 0:02:17]} 27. Kd1 {[%clk 0:01:52.2]} 27... Bc3 {[%clk 0:02:11.1]}
28. Qe2 {[%clk 0:01:42.4]} 28... Rd8+ {[%clk 0:02:04.6]} 0-1